bitfinex-derivatives/quotes_ETHF0:USTF0_20241229
["timestamp","ask_amount","ask_price","bid_price","bid_amount"]
[1735506045560,0.29826,3360.3,3360.2,6.48999034]
[1735506046057,0.29826,3360.3,3360.2,8.82494579]
[1735506046258,0.29826,3360.3,3360.2,7.75987524]
[1735506046555,3.2078,3360.6,3360.2,8.52668579]
[1735506046761,3.2078,3360.6,3360.5,1.36331055]
[1735506049159,3.2078,3360.6,3360.5,5.92842632]
[1735506049571,3.2078,3360.6,3360.5,6.79082632]
[1735506050260,2.64377539,3361.0,3360.5,6.79082632]
[1735506050459,3.2078,3360.9,3360.6,0.4571]
[1735506050765,3.2078,3360.9,3360.8,0.29821]
[1735506054565,3.2078,3360.9,3360.7,1.06507055]
[1735506054766,3.50601,3360.9,3360.8,0.29821]
[1735506055761,3.2078,3360.9,3360.6,4.66269831]
[1735506055957,1.36329055,3360.7,3360.6,4.66269831]
[1735506056466,1.78279055,3360.7,3360.6,4.66269831]
[1735506058273,0.29826,3360.4,3360.2,4.96095831]
[1735506058567,0.71776,3360.3,3360.2,4.66269831]
[1735506058873,2.22003055,3360.3,3360.2,4.66269831]
[1735506059869,0.29828,3360.0,3359.9,4.66269831]
[1735506062267,2.55001263,3360.0,3359.9,4.66269831]
[1735506062961,0.29829,3359.9,3359.8,4.66269831]
[1735506063364,5.29829,3359.9,3359.8,2.56989831]
[1735506063569,0.29831,3359.7,3359.6,6.92761057]
[1735506063768,5.75784263,3359.7,3359.6,6.88161057]
[1735506063969,10.75784263,3359.7,3359.6,6.88161057]
[1735506064471,5.75784263,3359.7,3359.6,6.88161057]
[1735506064974,0.29836,3359.2,3358.9,0.29838]
[1735506065172,3.2078,3359.0,3358.9,0.29838]
[1735506066373,2.5098,3359.0,3358.9,0.29838]
[1735506066777,5.54879346,3359.4,3359.3,0.29835]
[1735506067073,5.54879346,3359.4,3359.2,0.29835]
[1735506067277,5.54879346,3359.4,3359.3,0.75165]
[1735506067969,3.2078,3359.4,3359.3,0.75165]
[1735506071775,3.50614,3359.4,3359.3,0.4533]
[1735506075277,3.2078,3359.4,3359.3,0.75165]
[1735506075478,3.2078,3359.4,3359.3,0.4533]
[1735506075772,3.50614,3359.4,3359.3,0.4533]
[1735506076773,3.2078,3359.4,3359.3,0.75165]
[1735506078075,3.2078,3359.8,3359.3,0.4533]
[1735506078277,3.2078,3359.8,3359.7,0.29831]
[1735506083684,0.29826,3360.3,3360.1,0.29827]
[1735506083685,3.2078,3360.2,3360.1,0.29827]
[1735506084081,5.99959346,3360.6,3359.8,3.2078]
[1735506084283,0.29824,3360.5,3360.4,0.29824]
[1735506084786,5.54879346,3360.6,3360.5,0.29824]
[1735506085485,7.88978692,3361.0,3360.4,2.25173263]
[1735506085678,3.2078,3361.0,3360.9,0.2982]
[1735506088482,0.29816,3361.4,3361.3,0.29817]
[1735506089280,3.6419,3361.5,3360.9,0.4626]
[1735506089585,0.29816,3361.4,3361.3,0.29816]
[1735506090189,2.34099346,3361.7,3361.6,0.29814]
[1735506090687,0.74703,3361.8,3361.6,0.29814]
[1735506091181,0.29813,3361.7,3361.6,0.29814]
[1735506091388,0.74703,3361.8,3361.6,0.29814]
[1735506091787,0.4489,3361.8,3361.0,2.25173263]
[1735506092085,0.29814,3361.6,3361.4,0.29815]
[1735506092288,0.29814,3361.7,3361.4,0.29815]
[1735506092685,0.29814,3361.7,3361.5,0.29815]
[1735506093379,0.4489,3361.8,3361.0,2.25173263]
[1735506093683,0.4489,3361.8,3361.6,0.29814]
[1735506093684,0.74703,3361.8,3361.6,0.29814]
[1735506094385,0.4489,3361.8,3361.5,0.29815]
[1735506094776,0.29814,3361.7,3361.5,0.29815]
[1735506095489,3.2078,3361.9,3361.2,0.4289]
[1735506095675,0.29812,3361.8,3361.2,0.4289]
[1735506095982,0.29812,3361.8,3361.6,0.29814]
[1735506098282,0.29812,3361.8,3361.2,0.4289]
[1735506098478,3.50592,3361.9,3361.7,0.29813]
[1735506098682,0.29812,3361.8,3361.6,0.29813]
[1735506100287,0.29812,3361.8,3361.3,0.29817]
[1735506100483,3.2078,3361.9,3361.2,0.4289]
[1735506100784,0.4516,3361.7,3361.2,0.4289]
[1735506100990,0.4516,3361.7,3361.1,3.2078]
[1735506101289,0.4579,3361.6,3361.2,0.29817]
[1735506101488,0.29817,3361.4,3361.2,0.29817]
[1735506101685,0.4579,3361.6,3361.1,3.2078]
[1735506101884,0.2982,3360.9,3360.7,3.2078]
[1735506102190,5.45953263,3361.5,3361.0,0.29819]
[1735506102191,0.29819,3361.1,3361.0,0.29819]
[1735506103185,5.45953263,3361.5,3360.7,3.2078]
[1735506103381,0.2982,3361.0,3360.8,0.29821]
[1735506103583,0.2982,3361.0,3360.7,3.2078]
[1735506103780,0.29819,3361.1,3361.0,0.29819]
[1735506103982,0.29819,3361.1,3360.9,0.2982]
[1735506105490,0.2982,3361.0,3360.8,0.29821]
[1735506106095,0.4488,3360.9,3360.8,0.29821]
[1735506107694,0.747,3360.9,3360.8,0.29821]
[1735506108392,0.29823,3360.7,3360.5,3.93753]
[1735506108793,0.4488,3360.9,3360.5,3.93753]
[1735506108995,0.4488,3360.9,3360.5,3.6393]
[1735506109194,0.29823,3360.7,3360.6,0.29823]
[1735506112196,0.29823,3360.7,3360.5,0.4315]
[1735506112197,0.29823,3360.6,3360.5,0.72974]
[1735506112495,0.29823,3360.7,3360.6,0.29823]
[1735506113489,0.29822,3360.8,3360.7,0.29822]
[1735506113892,0.4488,3360.9,3360.5,0.4315]
[1735506114092,0.29822,3360.7,3360.6,0.29823]
[1735506114292,0.4488,3360.9,3360.5,0.4315]
[1735506114293,0.29823,3360.6,3360.5,0.72973]
[1735506114494,0.29823,3360.7,3360.6,0.29823]
[1735506117395,0.29823,3360.6,3360.5,0.72973]
[1735506117795,3.6279,3360.8,3360.5,0.72973]
[1735506117796,0.75713,3360.7,3360.6,0.29823]
[1735506118503,0.75713,3360.7,3360.4,0.4366]
[1735506118504,0.29827,3360.2,3360.1,0.29828]
[1735506119001,0.29828,3360.1,3360.0,3.2078]
[1735506119201,0.29828,3360.1,3359.8,0.7495]
[1735506119202,0.29829,3359.9,3359.8,0.7495]
[1735506119403,0.29829,3359.9,3359.8,0.4512]
[1735506119607,0.4589,3360.0,3359.6,0.4267]
[1735506119802,0.29831,3359.8,3359.7,0.29831]
[1735506120609,0.29831,3359.7,3359.6,0.72501]
[1735506120799,0.29831,3359.8,3359.7,0.29831]
[1735506121002,2.71063263,3360.0,3359.4,0.4512]
[1735506121302,2.71063263,3360.0,3359.5,0.29833]
[1735506121303,0.29833,3359.6,3359.5,0.29833]
[1735506122106,0.29831,3359.7,3359.6,0.29832]
[1735506122604,0.29832,3359.6,3359.5,0.29833]
[1735506123702,0.4589,3360.0,3359.5,0.29833]
[1735506123903,0.29832,3359.7,3359.5,0.29833]
[1735506124103,0.4589,3360.0,3359.5,0.29833]
[1735506124309,0.29832,3359.6,3359.5,0.29833]
[1735506125112,0.29832,3359.7,3359.6,0.29832]
[1735506128711,0.29832,3359.7,3359.4,0.4512]
[1735506128712,3.6667,3360.0,3359.4,0.4512]
[1735506128909,0.29832,3359.6,3359.5,0.29833]
[1735506130309,0.29832,3359.7,3359.6,0.29832]
[1735506130901,0.29832,3359.6,3359.5,0.29832]
[1735506131614,0.29832,3359.7,3359.6,0.29832]
[1735506132113,3.6667,3360.0,3359.4,0.4512]
[1735506132506,0.29832,3359.7,3359.6,0.29832]
[1735506133015,0.29833,3359.6,3359.5,0.29833]
[1735506135018,3.6667,3360.0,3359.4,0.4512]
[1735506135317,0.29832,3359.7,3359.6,0.29832]
[1735506135521,3.50609,3360.0,3359.9,0.29829]
[1735506136318,3.2078,3360.0,3359.9,0.29829]
[1735506138512,0.4514,3360.6,3360.4,0.29825]
[1735506138513,3.50604,3360.5,3360.4,0.29825]
[1735506138718,3.2078,3360.5,3360.4,0.29825]
[1735506139919,0.29823,3360.6,3360.0,3.95351]
[1735506140218,3.6374,3360.9,3360.2,2.25173263]
[1735506140423,3.2078,3360.9,3360.8,0.29821]
[1735506141919,0.72777,3361.3,3361.1,0.29818]
[1735506142219,0.4296,3361.3,3361.1,0.29818]
[1735506142521,0.4296,3361.3,3360.7,3.2078]
[1735506142522,5.54879346,3361.4,3361.3,0.29817]
[1735506142824,3.2078,3361.4,3361.3,0.29817]
[1735506143319,3.50596,3361.4,3361.3,0.29817]
[1735506143525,3.50596,3361.4,3360.7,3.2078]
[1735506143526,3.2078,3361.4,3360.7,3.2078]
[1735506143822,0.29817,3361.3,3361.1,0.29818]
[1735506144321,0.29817,3361.3,3360.7,3.2078]
[1735506144322,0.29817,3361.3,3361.2,0.29818]
[1735506144915,3.2078,3361.4,3361.3,0.29817]
[1735506145222,3.50597,3361.4,3361.2,0.29817]
[1735506145422,3.50597,3361.4,3360.7,3.2078]
[1735506145623,3.2078,3361.4,3361.3,0.29817]
[1735506146532,3.50596,3361.4,3361.3,0.29817]
[1735506147118,3.2078,3361.4,3361.3,0.29817]
[1735506150432,0.29815,3361.5,3361.3,0.29817]
[1735506150728,0.29815,3361.6,3361.4,0.29816]
[1735506150925,0.29815,3361.6,3361.5,0.29815]
[1735506151928,0.29813,3361.7,3361.5,0.29815]
[1735506152122,3.2078,3361.8,3361.5,0.29815]
[1735506152334,0.29814,3361.7,3361.6,0.29814]
[1735506152845,3.2078,3361.8,3361.6,0.29814]
[1735506153333,0.29813,3361.7,3361.6,0.29814]
[1735506153833,3.50593,3361.8,3361.6,0.29813]
[1735506154627,3.50593,3361.8,3361.7,0.4552]
[1735506154828,0.29813,3361.8,3361.7,0.4552]
[1735506155329,3.50593,3361.8,3361.7,0.4552]
[1735506156131,3.50593,3361.8,3361.7,0.75333]
[1735506156432,3.50593,3361.8,3361.7,0.4552]
[1735506159231,3.50593,3361.8,3361.7,0.75333]
[1735506161340,3.2078,3361.8,3361.7,0.75333]
[1735506162633,3.50592,3361.8,3361.7,0.75333]
[1735506162833,0.29811,3362.0,3361.9,0.29811]
[1735506163539,0.29811,3362.0,3361.8,0.29812]
[1735506163836,0.29811,3362.0,3361.9,0.29812]
[1735506169957,3.2078,3362.3,3361.7,0.4552]
[1735506170251,3.2078,3362.7,3362.2,2.25173263]
[1735506170452,3.2078,3363.1,3362.6,2.25173263]
[1735506170655,3.50582,3363.1,3362.9,0.29803]
[1735506170857,3.2078,3363.1,3362.9,0.29803]
[1735506171552,3.2078,3363.1,3362.9,2.54976263]
[1735506172261,3.2078,3363.1,3363.0,0.29802]
[1735506172457,3.2078,3363.1,3363.0,1.19672]
[1735506172757,0.4205,3363.7,3363.0,1.19672]
[1735506172758,3.2078,3363.5,3363.3,0.29799]
[1735506172957,3.50578,3363.5,3363.2,0.298]
[1735506173260,3.50578,3363.5,3363.3,0.29799]
[1735506174159,3.50578,3363.5,3363.4,0.438]
[1735506175357,3.2078,3363.5,3363.4,0.438]
[1735506175550,3.50577,3363.5,3363.4,0.438]
[1735506176355,3.2078,3363.5,3363.4,0.73598]
[1735506177257,3.2078,3363.9,3363.4,0.438]
[1735506177559,3.2078,3363.9,3363.5,2.25173263]
[1735506178456,3.50574,3363.9,3363.7,0.29795]
[1735506178865,3.2078,3363.9,3363.5,2.25173263]
[1735506179162,0.29796,3363.7,3363.6,0.29796]
[1735506179358,3.2078,3363.9,3363.4,0.438]
[1735506179662,3.2078,3363.9,3363.2,3.2078]
[1735506179867,3.2078,3363.9,3363.2,5.45953263]
[1735506180359,0.29796,3363.7,3363.5,0.29797]
[1735506180760,0.29796,3363.7,3363.6,0.4222]
[1735506182661,3.2078,3363.9,3363.6,0.4222]
[1735506182877,3.2078,3363.9,3363.7,0.29795]
[1735506182878,3.50574,3363.9,3363.7,0.29795]
[1735506183057,3.2078,3363.9,3363.6,0.4222]
[1735506183263,0.29795,3363.8,3363.6,0.8756]
[1735506183459,3.2078,3363.9,3363.6,0.8756]
[1735506183661,0.4404,3364.1,3363.6,0.8756]
[1735506183866,0.4404,3364.1,3364.0,0.29793]
[1735506184363,3.50571,3364.3,3364.1,0.29792]
[1735506184559,3.50571,3364.3,3364.2,0.4448]
[1735506187268,0.29794,3363.9,3363.8,2.54967263]
[1735506187866,3.2078,3364.3,3363.8,2.54967263]
[1735506187867,3.2078,3364.3,3363.9,0.29793]
[1735506188167,0.29794,3363.9,3363.8,2.25173263]
[1735506188369,0.29794,3363.9,3363.8,2.54968263]
[1735506188966,0.29794,3363.9,3363.8,2.25173263]
[1735506189171,3.2078,3364.3,3363.7,3.6511]
[1735506189365,0.29795,3363.8,3363.7,3.6511]
[1735506190366,0.29795,3363.8,3363.7,3.2078]
[1735506190666,0.29798,3363.4,3363.3,3.2078]
[1735506191167,0.29802,3363.0,3362.9,5.45953263]
[1735506191665,0.29802,3363.0,3362.6,5.96013069]
[1735506191666,0.29802,3363.0,3362.6,8.21186332]
[1735506192270,3.2078,3363.3,3362.8,0.29803]
[1735506192271,0.29803,3362.9,3362.8,0.29803]
[1735506192464,3.2078,3363.3,3362.6,3.59553263]
[1735506192465,0.29804,3362.7,3362.6,2.68373263]
[1735506193165,0.29804,3362.7,3362.6,2.98178263]
[1735506193361,0.298,3363.2,3362.6,2.68373263]
[1735506193568,3.2078,3363.3,3362.9,5.45953263]
[1735506193873,3.5058,3363.3,3363.1,0.298]
[1735506194570,3.5058,3363.3,3363.0,0.4199]
[1735506194774,0.298,3363.2,3363.1,0.29801]
[1735506195167,0.2979,3364.4,3364.3,0.2979]
[1735506195478,6.71929019,3364.6,3364.3,0.2979]
[1735506195669,6.71929019,3364.6,3364.1,2.54965263]
[1735506195971,6.71929019,3364.6,3364.2,0.29791]
[1735506195972,3.2078,3364.6,3364.2,0.29791]
[1735506196665,3.2078,3364.6,3364.3,0.2979]
[1735506196875,3.2078,3364.6,3364.1,2.25173263]
[1735506197076,3.2078,3364.6,3364.4,0.29789]
[1735506197569,3.2078,3364.6,3364.1,2.25173263]
[1735506197768,3.2078,3364.6,3364.5,0.29789]
[1735506198578,0.8847,3364.9,3364.1,2.25173263]
[1735506198876,1.18255,3364.9,3364.7,0.29786]
[1735506199072,0.8847,3364.9,3364.8,0.29786]
[1735506200371,0.4299,3364.9,3364.8,0.29786]
[1735506202275,0.4299,3364.9,3364.5,0.4195]
[1735506202576,0.4299,3364.9,3364.8,0.29786]
[1735506207377,0.43392284,3364.9,3364.8,0.29786]
[1735506209374,0.43392284,3364.9,3364.3,3.2078]
[1735506209680,0.4629,3364.8,3364.3,3.2078]
[1735506209988,0.29788,3364.6,3364.4,0.29789]
[1735506210180,0.4629,3364.8,3364.4,0.29789]
[1735506210373,0.29789,3364.4,3364.3,3.5057]
[1735506210774,0.29789,3364.4,3364.3,3.2078]
[1735506211979,0.29789,3364.4,3364.3,3.5057]
[1735506212379,0.4629,3364.8,3364.2,2.25173263]
[1735506212380,3.2078,3364.7,3364.2,2.25173263]
[1735506212580,3.50567,3364.7,3364.6,0.29788]
[1735506212973,3.2078,3364.7,3364.6,0.29788]
[1735506213677,0.4629,3364.8,3364.7,0.29787]
[1735506214679,0.43392284,3364.9,3364.4,0.4558]
[1735506214876,0.00402284,3364.9,3364.8,0.29786]
[1735506216677,0.00402284,3364.9,3364.8,3.50566]
[1735506217881,0.00402284,3364.9,3364.8,5.75739263]
[1735506221477,0.00402284,3364.9,3364.8,3.50566]
[1735506222080,0.00402284,3364.9,3364.6,0.8977]
[1735506222081,0.30187284,3364.9,3364.6,0.29787]
[1735506222287,0.29787,3364.7,3364.6,0.29787]
[1735506224678,0.29788,3364.6,3364.5,0.29788]
[1735506226486,0.29787,3364.7,3364.6,0.29787]
[1735506226783,0.29788,3364.6,3364.5,0.29788]
[1735506226983,0.76268,3364.6,3364.5,0.29788]
[1735506227388,0.29786,3364.8,3364.7,0.29786]
[1735506227582,0.00402284,3364.9,3364.6,0.75807]
[1735506227583,0.29787,3364.7,3364.6,0.75807]
[1735506228977,0.00402284,3364.9,3364.6,0.4602]
[1735506229286,0.29787,3364.8,3364.7,0.29786]
[1735506229484,0.00402284,3364.9,3364.6,0.4602]
[1735506229485,0.29787,3364.7,3364.6,0.75807]
[1735506230584,0.30187284,3364.9,3364.8,0.29786]
[1735506231989,0.00402284,3364.9,3364.8,0.29786]
[1735506232991,0.30187284,3364.9,3364.8,0.29786]
[1735506234893,0.00402284,3364.9,3364.8,0.29786]
[1735506237789,0.30187284,3364.9,3364.8,0.29786]
[1735506238790,0.00402284,3364.9,3364.8,0.29786]
[1735506240900,0.29786,3364.8,3364.7,0.29786]
[1735506241094,0.72796,3364.8,3364.7,0.29786]
[1735506241496,0.4301,3364.8,3364.6,5.07653069]
[1735506241700,0.72796,3364.8,3364.7,0.29787]
[1735506242090,0.4301,3364.8,3364.7,0.29787]
[1735506242796,0.72796,3364.8,3364.7,0.29787]
[1735506243097,0.4301,3364.8,3364.7,0.29787]
[1735506243303,0.00402284,3364.9,3364.8,0.29786]
[1735506243503,0.00402284,3364.9,3364.8,2.54959263]
[1735506244298,0.00402284,3364.9,3364.8,11.6442666]
[1735506244796,0.00402284,3364.9,3364.8,12.0994666]
[1735506245795,0.00402284,3364.9,3364.8,7.48313591]
[1735506247306,0.00402284,3364.9,3364.8,10.69093591]
[1735506248307,2.34268221,3365.0,3364.8,10.39307591]
[1735506248605,2.34268221,3365.0,3364.9,0.29785]
[1735506248807,2.34268221,3365.5,3364.8,19.34574275]
[1735506249003,2.34268221,3365.5,3365.4,3.50561]
[1735506249209,2.34268221,3365.5,3365.4,3.58730743]
[1735506250001,2.34268221,3365.5,3365.4,3.28949743]
[1735506250207,0.2978,3365.5,3365.4,7.92489679]
[1735506251203,0.2978,3365.5,3365.4,4.71709679]
[1735506251404,0.2978,3365.5,3365.4,1.20139679]
[1735506251608,0.2978,3365.5,3364.6,3.6381]
[1735506251609,0.29781,3365.4,3365.3,0.50349679]
[1735506251808,2.54954263,3365.4,3365.3,0.50349679]
[1735506252004,7.54954263,3365.4,3365.3,0.50349679]
[1735506252709,7.54954263,3365.4,3364.4,0.4235]
[1735506252710,0.29789,3364.5,3364.4,0.4235]
[1735506253101,0.2979,3364.3,3364.2,6.95309904]
[1735506253402,3.5057,3364.3,3364.2,6.95309904]
[1735506254509,5.54887226,3364.3,3363.9,0.4235]
[1735506254711,0.29793,3364.1,3363.9,0.72144]
[1735506255507,0.29793,3364.0,3363.9,0.4235]
[1735506256211,5.54887226,3364.3,3363.9,0.4235]
[1735506256413,0.29792,3364.1,3363.9,0.72143]
[1735506257113,0.29792,3364.1,3364.0,0.29793]
[1735506257308,0.29792,3364.1,3363.9,0.4235]
[1735506257609,0.29792,3364.1,3363.9,0.72143]
[1735506258008,5.54887226,3364.3,3363.9,0.4235]
[1735506258211,5.54887226,3364.3,3364.2,0.29791]
[1735506258709,3.2078,3364.3,3364.2,0.29791]
[1735506260107,2.63897226,3364.4,3364.2,0.29791]
[1735506260707,0.29791,3364.3,3364.1,0.29791]
[1735506260907,0.29792,3364.1,3364.0,2.25173263]
[1735506261309,0.29792,3364.2,3364.0,2.54966263]
[1735506261513,0.29789,3364.5,3364.0,2.25173263]
[1735506261813,0.29792,3364.1,3364.0,2.25173263]
[1735506262914,0.29792,3364.1,3363.9,3.92923]
[1735506263416,0.29792,3364.2,3364.0,0.29793]
[1735506263610,0.29792,3364.2,3364.1,0.29792]
[1735506264016,0.2979,3364.3,3364.2,0.29791]
[1735506264316,2.34107226,3364.6,3364.1,0.29792]
[1735506264317,0.29792,3364.2,3364.1,0.29792]
[1735506265213,0.2979,3364.4,3364.2,0.29791]
[1735506265418,0.2979,3364.4,3364.3,0.4273]
[1735506265619,2.63895226,3364.6,3364.4,0.29789]
[1735506265919,5.54887226,3364.7,3364.3,0.4273]
[1735506266815,0.29789,3364.4,3364.1,0.4494]
[1735506267017,0.29791,3364.2,3364.1,0.4494]
[1735506267216,0.29791,3364.2,3364.1,0.74732]
[1735506268917,0.29791,3364.2,3364.1,0.4494]
[1735506269613,0.29791,3364.2,3364.1,0.74732]
[1735506273914,0.29789,3364.5,3364.3,0.2979]
[1735506274120,0.29791,3364.3,3364.2,0.29791]
[1735506274326,5.54887226,3364.6,3364.1,0.4494]
[1735506274623,5.54887226,3364.6,3364.5,0.29789]
[1735506274624,2.34107226,3364.6,3364.5,0.29789]
[1735506275022,8.18779452,3365.0,3364.6,0.29788]
[1735506275023,2.34107226,3364.7,3364.6,0.29788]
[1735506275226,2.34107226,3364.7,3364.6,2.54961263]
[1735506276625,7.88994452,3365.0,3364.6,2.25173263]
[1735506276626,3.2078,3365.0,3364.6,2.25173263]
[1735506276820,3.2078,3365.0,3364.9,2.54958263]
[1735506278227,2.34107226,3365.5,3365.4,0.29781]
[1735506279223,2.34107226,3365.5,3365.4,0.73121]
[1735506279423,0.29779,3365.6,3365.5,0.2978]
[1735506279829,0.29779,3365.6,3365.5,0.7622]
[1735506280425,0.29779,3365.6,3365.5,0.4644]
[1735506280822,5.0,3365.6,3364.3,11.5884984]
[1735506281022,0.29786,3364.8,3364.3,11.5884984]
[1735506281219,2.54959263,3364.8,3364.3,11.5884984]
[1735506281427,7.54959263,3364.8,3364.3,11.5884984]
[1735506282531,2.54959263,3364.8,3364.3,11.5884984]
[1735506282736,0.29791,3364.2,3364.1,0.8978]
[1735506283733,0.29791,3364.2,3364.1,1.19572]
[1735506283927,0.29791,3364.2,3364.1,0.8978]
[1735506285230,2.33673184,3364.7,3364.1,0.8978]
[1735506285430,0.29794,3364.2,3364.1,0.8978]
[1735506290939,0.29794,3364.2,3364.1,1.19569]
[1735506292537,3.2078,3364.5,3364.1,0.8978]
[1735506292742,0.29787,3364.4,3364.2,0.29788]
[1735506292936,0.29787,3364.4,3364.3,0.29787]
[1735506295244,3.2078,3364.9,3364.1,4.1056]
[1735506295245,3.50562,3364.9,3364.8,0.29783]
[1735506296534,0.29783,3364.8,3364.7,0.29784]
[1735506297741,2.63556323,3364.8,3364.7,0.29784]
[1735506298438,0.29783,3364.8,3364.7,0.29784]
[1735506299439,0.29783,3364.8,3364.7,0.74794]
[1735506300739,0.29783,3364.8,3364.7,0.4501]
[1735506302135,0.29784,3364.7,3364.6,3.2078]
[1735506304648,2.33880799,3364.8,3364.5,0.4514]
[1735506304947,0.29785,3364.6,3364.5,0.4514]
[1735506307146,0.29786,3364.4,3364.3,0.4226]
[1735506307345,3.50566,3364.4,3364.3,0.4226]
[1735506307949,3.2078,3364.4,3363.9,6.95274943]
[1735506308449,3.2078,3364.4,3363.8,0.451]
[1735506308450,0.29791,3363.9,3363.8,0.451]
[1735506308943,0.74469,3364.3,3363.7,3.2078]
[1735506309151,2.25173263,3363.9,3363.6,6.95274943]
[1735506309349,0.29793,3363.7,3363.6,6.95274943]
[1735506309941,3.43773263,3363.9,3363.3,7.85694943]
[1735506310147,0.29795,3363.4,3363.3,7.85694943]
[1735506310958,0.29795,3363.4,3363.3,7.40374943]
[1735506312154,0.29795,3363.4,3363.3,0.451]
[1735506312359,0.29798,3363.1,3363.0,0.4532]
[1735506313657,5.45953263,3363.6,3363.0,0.4532]
[1735506313857,0.29797,3363.2,3363.0,0.75119]
[1735506314357,2.33880799,3363.5,3363.0,0.75119]
[1735506314558,0.29798,3363.1,3363.0,0.75119]
[1735506315161,0.29798,3363.1,3363.0,0.4532]
[1735506316360,0.29799,3363.0,3362.9,0.4403]
[1735506316759,2.25173263,3363.3,3362.7,3.2078]
[1735506316760,0.29801,3362.8,3362.7,3.2078]
[1735506319860,2.25173263,3363.3,3362.7,3.2078]
[1735506320056,0.29798,3363.1,3362.9,0.29799]
[1735506320863,3.52480799,3363.5,3362.7,3.2078]
[1735506321063,0.29798,3363.2,3363.0,0.29799]
[1735506321263,0.29798,3363.2,3363.1,0.8853]
[1735506321464,0.29798,3363.2,3363.1,1.3468]
[1735506322565,0.29797,3363.3,3363.2,0.29797]
[1735506322861,1.186,3363.5,3363.2,0.29797]
[1735506323066,1.186,3363.5,3363.1,1.3468]
[1735506323067,0.29796,3363.4,3363.3,0.29796]
[1735506323754,0.29796,3363.4,3363.2,0.29797]
[1735506324258,3.2078,3363.6,3363.1,1.3468]
[1735506324472,3.2078,3363.6,3363.5,0.29794]
[1735506325558,3.2078,3364.0,3363.1,1.3468]
[1735506325756,3.2078,3364.0,3363.9,0.29791]
[1735506327565,0.29789,3364.1,3364.0,0.2979]
[1735506327867,0.29791,3363.9,3363.8,3.2078]
[1735506329773,0.29791,3363.9,3363.8,3.50572]
[1735506330473,0.29791,3363.9,3363.8,3.2078]
[1735506332372,0.29791,3363.9,3363.7,1.19652]
[1735506332577,2.25173263,3364.2,3363.8,3.50572]
[1735506332769,0.29791,3363.9,3363.8,3.2078]
[1735506333779,0.29791,3363.9,3363.8,3.50572]
[1735506337079,0.29791,3363.9,3363.8,3.2078]
[1735506338581,0.29795,3363.4,3363.3,0.8964]
[1735506338772,3.50575,3363.4,3363.3,0.8964]
[1735506339084,3.50575,3363.4,3362.9,6.95274943]
[1735506339085,0.74491,3363.3,3362.7,6.95274943]
[1735506339279,0.74491,3363.3,3362.8,0.8844]
[1735506339480,0.298,3362.9,3362.8,0.8844]
[1735506339682,0.298,3362.9,3362.8,1.18241]
[1735506340376,0.298,3362.9,3362.8,1.62611]
[1735506340581,0.298,3362.9,3362.8,1.3281]
[1735506345784,3.50578,3363.1,3362.8,1.3281]
[1735506346078,0.29795,3363.4,3363.2,0.29796]
[1735506346280,2.33880799,3363.6,3363.2,3.2078]
[1735506346486,2.33880799,3363.6,3363.5,0.29794]
[1735506347790,0.29792,3363.8,3363.6,0.29793]
[1735506347990,0.29792,3363.8,3363.7,0.8944]
[1735506348880,0.29792,3363.8,3363.7,1.19233]
[1735506349084,0.29792,3363.8,3363.7,0.8944]
[1735506351088,2.25173263,3363.8,3363.2,6.95274943]
[1735506351288,0.29796,3363.3,3363.2,6.95274943]
[1735506351788,0.4616,3363.7,3363.2,6.95274943]
[1735506351993,3.2078,3363.9,3363.3,0.29796]
[1735506352191,0.29793,3363.7,3363.5,0.29794]
[1735506352495,2.33880799,3363.8,3363.5,3.2078]
[1735506352793,2.33880799,3363.8,3363.7,0.29793]
[1735506353495,0.29793,3363.7,3363.6,0.29793]
[1735506353688,0.29793,3363.7,3363.5,3.50574]
[1735506353886,2.33880799,3363.8,3363.5,3.50574]
[1735506354093,0.29793,3363.6,3363.5,3.50574]
[1735506355891,0.29793,3363.6,3363.5,3.2078]
[1735506356496,0.29792,3363.8,3363.7,0.29792]
[1735506356696,0.29793,3363.7,3363.6,0.29793]
[1735506356894,0.29793,3363.7,3363.6,0.73443]
[1735506360707,0.29793,3363.7,3363.6,0.4365]
[1735506360888,3.95255,3364.1,3363.5,3.2078]
[1735506361093,0.29793,3363.6,3363.5,3.2078]
[1735506361387,0.29793,3363.6,3363.3,6.95274943]
[1735506361388,0.29795,3363.4,3363.3,6.95274943]
[1735506362193,2.25173263,3363.5,3363.0,0.4381]
[1735506362194,0.29798,3363.1,3363.0,0.4381]
[1735506362998,7.92933799,3363.7,3363.0,0.4381]
[1735506363296,4.97553598,3363.8,3363.6,0.29793]
[1735506363496,4.97553598,3363.8,3363.3,3.2078]
[1735506363497,4.67761598,3363.8,3363.7,4.81923]
[1735506364400,4.97553598,3363.8,3363.7,4.81923]
[1735506364603,0.29792,3363.8,3363.7,4.81923]
[1735506365006,0.29792,3363.8,3363.7,4.5213]
[1735506366399,0.29792,3363.8,3363.7,4.81923]
[1735506366698,0.29792,3363.8,3363.7,4.5213]
[1735506367094,0.29792,3363.8,3363.7,1.3135]
[1735506368804,0.29792,3363.8,3363.7,4.5213]
[1735506369402,2.33766145,3364.3,3363.7,4.5213]
[1735506369606,0.2979,3364.0,3363.9,0.29791]
[1735506370007,2.33766145,3364.3,3363.7,4.5213]
[1735506370407,0.29792,3363.8,3363.7,4.5213]
[1735506373715,0.29792,3363.8,3363.7,4.81923]
[1735506375907,0.29792,3363.8,3363.7,4.5213]
[1735506384117,0.29792,3363.8,3363.7,4.0749]
[1735506384316,0.29792,3363.8,3363.7,3.2078]
[1735506385812,2.63558145,3363.8,3363.7,3.2078]
[1735506387226,3.80441218,3363.8,3363.7,3.2078]
[1735506387722,0.29797,3363.2,3363.1,4.63517194]